[Event "XXXII Belgrade Trophy 2018"]
[Site "Belgrade"]
[Date "2018.11.24"]
[Round "1"]
[White "Xilogiannis, Dimitrios"]
[Black "Kadric, Denis"]
[Result "0-1"]
[ECO "B06"]
[WhiteElo "2011"]
[BlackElo "2554"]
[Annotator "RC"]
[PlyCount "124"]
[EventDate "2018.11.24"]
[EventType "swiss"]
[EventCountry "SRB"]
[SourceTitle "playchess.com"]
[Source "ChessBase"]
[SourceQuality "1"]
[TimeControl "40/5400+30:900+30"]

1. d4 {[%emt 0:00:00]} g6 {[%emt 0:00:00]} 2. e4 {[%emt 0:00:30]} Bg7 {[%emt 0:00:00]} 3. Nc3 {[%emt 0:00:23]} a6 {[%emt 0:00:00]} 4. a4 {[%emt 0:02:15]} d6 {[%emt 0:00:00]} 5. Be3 {[%emt 0:01:08]} Nf6 {[%emt 0:00:24]} 6. f3 {[%emt 0:01:14]} O-O {[%emt 0:00:04]} 7. Qd2 {[%emt 0:02:17]} Nc6 {[%emt 0:00:37]} 8. Bc4 {[%emt 0:05:47]} e5 {[%emt 0:04:16]} 9. Nge2 {[%emt 0:02:40]} exd4 {[%emt 0:00:34]} 10. Nxd4 {[%emt 0:00:16]} Ne5 {[%emt 0:00:01]} 11. Bb3 {[%emt 0:03:53]} c5 {[%emt 0:12:47]} 12. Nde2 {[%emt 0:01:29]} Be6 {[%emt 0:01:00]} 13. Nd5 {[%emt 0:14:07]} c4 {[%emt 0:02:32]} 14. Nxf6+ {[%emt 0:02:27]} Bxf6 {[%emt 0:02:34]} 15. Ba2 {[%emt 0:01:43]} d5 {[%emt 0:02:52]} 16. exd5 {[%emt 0:01:59]} Bxd5 {[%emt 0:00:56]} 17. O-O {[%emt 0:02:33]} Bc6 {[%emt 0:00:41]} 18. a5 {[%emt 0:07:43]} Re8 {[%emt 0:05:16]} 19. Nd4 {[%emt 0:07:14]} Qc7 {[%emt 0:00:04]} 20. Qf2 {[%emt 0:10:04]} Bd5 {[%emt 0:01:16]} 21. Rfd1 {[%emt 0:05:19]} Nd7 {[%emt 0:08:42]} 22. Nf5 {[%emt 0:05:56]} Be6 {[%emt 0:02:41]} 23. Nh6+ {[%emt 0:10:10]} Kg7 {[%emt 0:00:26]} 24. Ng4 {[%emt 0:01:27]} Bxb2 {[%emt 0:09:20]} 25. Bd4+ {[%emt 0:00:28]} Bxd4 {[%emt 0:00:13]} 26. Qxd4+ {[%emt 0:00:02]} f6 {[%emt 0:10:57]} 27. Bxc4 {[%emt 0:01:50]} Bxg4 {[%emt 0:00:37]} 28. fxg4 {[%emt 0:00:58]} Ne5 {[%emt 0:00:11]} 29. Bb3 {[%emt 0:01:48]} Rad8 {[%emt 0:01:10]} 30. Qb4 {[%emt 0:03:16]} Re7 {[%emt 0:01:41]} 31. Rxd8 {[%emt 0:01:39]} Qxd8 {[%emt 0:00:03]} 32. Re1 {[%emt 0:01:18]} Nc6 {[%emt 0:05:39]} 33. Rxe7+ {[%emt 0:00:39]} Qxe7 {[%emt 0:00:03]} 34. Qd2 {[%emt 0:01:00]} Qc7 {[%emt 0:01:04]} 35. g5 {[%emt 0:00:40]} fxg5 {[%emt 0:00:07]} 36. Qxg5 {[%emt 0:00:45]} Qxa5 {[%emt 0:00:03]} 37. Qf4 {[%emt 0:00:41]} Qe1+ {[%emt 0:00:31]} 38. Qf1 {[%emt 0:00:05]} Qxf1+ {[%emt 0:00:06]} 39. Kxf1 {[%emt 0:00:04]} Nd4 {[%emt 0:01:02]} 40. Bd5 {[%emt 0:00:08]} b6 {[%emt 0:00:51]} 41. c3 {[%emt 0:15:20]} Nb5 {[%emt 0:15:16]} 42. Bc4 {[%emt 0:00:54]} Kf6 {[%emt 0:00:03]} 43. Kf2 {[%emt 0:00:54]} Ke5 {[%emt 0:00:03]} 44. Ke3 {[%emt 0:00:43]} Nc7 {[%emt 0:00:24]} 45. g3 {[%emt 0:00:00]} a5 {[%emt 0:00:00]} 46. Kd3 {[%emt 0:00:00]} Nd5 {[%emt 0:00:00]} 47. Bb5 {[%emt 0:00:00]} Nf6 {[%emt 0:00:00]} 48. Bc6 {[%emt 0:00:00]} Kd6 {[%emt 0:00:00]} 49. Bf3 {[%emt 0:00:00]} Kc5 {[%emt 0:00:00]} 50. h4 {[%emt 0:00:00]} b5 {[%emt 0:00:00]} 51. g4 {[%emt 0:00:00]} Nd7 {[%emt 0:00:00]} 52. Be2 {[%emt 0:00:00]} Ne5+ {[%emt 0:00:00]} 53. Kc2 {[%emt 0:00:00]} a4 {[%emt 0:00:00]} 54. g5 {[%emt 0:00:00]} Nf7 {[%emt 0:00:00]} 55. Bd3 {[%emt 0:00:00]} Nd6 {[%emt 0:00:00]} 56. h5 {[%emt 0:00:00]} gxh5 {[%emt 0:00:00]} 57. Bxh7 {[%emt 0:00:00]} Kd5 {[%emt 0:00:00]} 58. Bd3 {[%emt 0:00:00]} h4 {[%emt 0:00:00]} 59. Kb2 {[%emt 0:03:53]} h3 {[%emt 0:00:22]} 60. Bf1 {[%emt 0:00:29]} h2 {[%emt 0:00:01]} 61. Bg2+ {[%emt 0:00:06]} Ke5 {[%emt 0:00:05]} 62. Ka3 {[%emt 0:00:50]} Kf5 {[%emt 0:00:07]} 0-1

[Event "XXXII Belgrade Trophy 2018"]
[Site "Belgrade"]
[Date "2018.11.24"]
[Round "1"]
[White "Stefanovic, Milan"]
[Black "Atakisi, Umut"]
[Result "0-1"]
[ECO "D02"]
[WhiteElo "1957"]
[BlackElo "2398"]
[Annotator "RC"]
[PlyCount "70"]
[EventDate "2018.11.24"]
[EventType "swiss"]
[EventCountry "SRB"]
[SourceTitle "playchess.com"]
[Source "ChessBase"]
[SourceQuality "1"]
[TimeControl "40/5400+30:900+30"]

1. d4 {[%emt 0:00:00]} Nf6 {[%emt 0:07:00]} 2. Nf3 {[%emt 0:00:00]} d5 {[%emt 0:00:34]} 3. Bf4 {[%emt 0:00:02]} c5 {[%emt 0:00:06]} 4. e3 {[%emt 0:00:15]} Nc6 {[%emt 0:00:09]} 5. c3 {[%emt 0:00:27]} Qb6 {[%emt 0:00:10]} 6. Qb3 {[%emt 0:00:27]} c4 {[%emt 0:00:06]} 7. Qc2 {[%emt 0:00:23]} Bf5 {[%emt 0:00:07]} 8. Qc1 {[%emt 0:00:09]} h6 {[%emt 0:00:25]} 9. Nbd2 {[%emt 0:01:23]} e6 {[%emt 0:00:15]} 10. Be2 {[%emt 0:00:38]} Be7 {[%emt 0:02:16]} 11. O-O {[%emt 0:01:11]} O-O {[%emt 0:01:26]} 12. h3 {[%emt 0:02:07]} Rfc8 {[%emt 0:05:48]} 13. Ne5 {[%emt 0:03:23]} Qd8 {[%emt 0:01:15]} 14. Bh2 {[%emt 0:02:56]} b5 {[%emt 0:00:43]} 15. f4 {[%emt 0:05:50]} Bh7 {[%emt 0:09:20]} 16. g4 {[%emt 0:08:55]} Nxe5 {[%emt 0:01:12]} 17. dxe5 {[%emt 0:06:47]} Ne4 {[%emt 0:01:32]} 18. Nxe4 {[%emt 0:08:08]} Bxe4 {[%emt 0:00:39]} 19. Bf3 {[%emt 0:07:01]} Bd3 {[%emt 0:01:55]} 20. Rf2 {[%emt 0:09:20]} b4 {[%emt 0:01:22]} 21. Bg3 {[%emt 0:05:35]} Rab8 {[%emt 0:17:09]} 22. Be2 {[%emt 0:05:24]} bxc3 {[%emt 0:05:57]} 23. bxc3 {[%emt 0:00:37]} Qa5 {[%emt 0:00:49]} 24. Qd2 {[%emt 0:07:49]} Be4 {[%emt 0:03:37]} 25. Bf3 {[%emt 0:05:52]} Bxf3 {[%emt 0:01:28]} 26. Rxf3 {[%emt 0:00:12]} Ba3 {[%emt 0:00:15]} 27. Be1 {[%emt 0:04:12]} Rb2 {[%emt 0:02:46]} 28. Qd1 {[%emt 0:01:45]} Rcb8 {[%emt 0:02:05]} 29. f5 {[%emt 0:02:49]} Bc5 {[%emt 0:02:27]} 30. a4 {[%emt 0:01:30]} Qb6 {[%emt 0:00:43]} 31. Bd2 {[%emt 0:02:34]} Qb3 {[%emt 0:02:45]} 32. Qe1 {[%emt 0:01:39]} Qc2 {[%emt 0:00:53]} 33. Rf2 {[%emt 0:00:39]} Rb1 {[%emt 0:06:15]} 34. Bc1 {[%emt 0:01:03]} Qd3 {[%emt 0:00:27]} 35. Rxb1 {[%emt 0:01:32]} Rxb1 {[%emt 0:00:08]} 0-1

[Event "XXXII Belgrade Trophy 2018"]
[Site "Belgrade"]
[Date "2018.11.25"]
[Round "2"]
[White "Atakisi, Umut"]
[Black "Graovac, Vidak Balsa"]
[Result "1-0"]
[ECO "E92"]
[WhiteElo "2398"]
[BlackElo "2155"]
[Annotator "ChessBase"]
[PlyCount "65"]
[EventDate "2018.11.24"]
[EventType "swiss"]
[EventCountry "SRB"]
[SourceTitle "playchess.com"]
[Source "ChessBase"]
[SourceQuality "1"]
[TimeControl "40/5400+30:900+30"]

1. d4 {[%emt 0:08:04]} Nf6 {[%emt 0:00:24]} 2. Nf3 {[%emt 0:00:40]} d6 {[%emt 0:00:53]} 3. c4 {[%emt 0:00:18]} g6 {[%emt 0:09:50]} 4. Nc3 {[%emt 0:05:56]} Bg7 {[%emt 0:00:07]} 5. e4 {[%emt 0:00:04]} O-O {[%emt 0:00:04]} 6. Be2 {[%emt 0:00:04]} e5 {[%emt 0:01:55]} 7. Be3 {[%emt 0:00:10]} Qe7 {[%emt 0:02:30]} 8. O-O {[%emt 0:07:35]} Nbd7 {[%emt 0:08:03]} 9. Re1 {[%emt 0:05:41]} c6 {[%emt 0:01:27]} 10. Bf1 {[%emt 0:09:04]} Rd8 {[%emt 0:03:26]} 11. d5 {[%emt 0:05:18]} Ng4 {[%emt 0:01:31]} 12. Bg5 {[%emt 0:02:05]} f6 {[%emt 0:03:54]} 13. Bd2 {[%emt 0:02:20]} f5 {[%emt 0:00:16]} 14. exf5 {[%emt 0:03:22]} gxf5 {[%emt 0:00:10]} 15. h3 {[%emt 0:01:49]} Ngf6 {[%emt 0:02:33]} 16. Nd4 {[%emt 0:09:21]} Nc5 {[%emt 0:01:02]} 17. dxc6 {[%emt 0:03:46]} Nce4 {[%emt 0:06:00]} 18. Nxe4 {[%emt 0:02:41]} Nxe4 {[%emt 0:05:12]} 19. cxb7 {[%emt 0:02:52]} Qxb7 {[%emt 0:00:03]} 20. Nb5 {[%emt 0:02:04]} a6 {[%emt 0:02:53]} 21. Nc3 {[%emt 0:01:45]} Qxb2 {[%emt 0:00:15]} 22. Nxe4 {[%emt 0:00:50]} fxe4 {[%emt 0:00:01]} 23. Bg5 {[%emt 0:04:00]} Be6 {[%emt 0:02:26]} 24. Bxd8 {[%emt 0:01:12]} Rxd8 {[%emt 0:00:02]} 25. Qb3 {[%emt 0:01:25]} Qd4 {[%emt 0:02:36]} 26. Qe3 {[%emt 0:01:05]} Qb2 {[%emt 0:07:05]} 27. Rab1 {[%emt 0:09:43]} Qxa2 {[%emt 0:00:36]} 28. Rb7 {[%emt 0:00:25]} Rf8 {[%emt 0:03:26]} 29. Qg3 {[%emt 0:00:44]} Bf7 {[%emt 0:00:08]} 30. Rxe4 {[%emt 0:03:52]} Bg6 {[%emt 0:00:49]} 31. Rg4 {[%emt 0:02:22]} Qa1 {[%emt 0:00:25]} 32. h4 {[%emt 0:02:54]} Rf5 {[%emt 0:02:34]} 33. Rxg6 {[%emt 0:00:49]} 1-0

[Event "XXXII Belgrade Trophy 2018"]
[Site "Belgrade"]
[Date "2018.11.25"]
[Round "2"]
[White "Sahin, Ozgun"]
[Black "Blagojevic, Dragisa"]
[Result "0-1"]
[ECO "C26"]
[WhiteElo "2208"]
[BlackElo "2494"]
[Annotator "ChessBase"]
[PlyCount "34"]
[EventDate "2018.11.24"]
[EventType "swiss"]
[EventCountry "SRB"]
[SourceTitle "playchess.com"]
[Source "ChessBase"]
[SourceQuality "1"]
[TimeControl "40/5400+30:900+30"]

1. e4 {[%emt 0:00:00]} e5 {[%emt 0:01:02]} 2. Nc3 {[%emt 0:00:00]} Nc6 {[%emt 0:00:19]} 3. g3 {[%emt 0:00:00]} Bc5 {[%emt 0:00:36]} 4. Bg2 {[%emt 0:00:00]} a6 {[%emt 0:00:12]} 5. Nge2 {[%emt 0:00:00]} d6 {[%emt 0:00:18]} 6. O-O {[%emt 0:00:04]} Nf6 {[%emt 0:04:11]} 7. h3 {[%emt 0:00:40]} Be6 {[%emt 0:01:23]} 8. Kh2 {[%emt 0:01:38]} h5 {[%emt 0:03:40]} 9. f4 {[%emt 0:01:27]} Ng4+ {[%emt 0:01:02]} 10. hxg4 {[%emt 0:12:42]} hxg4+ {[%emt 0:00:08]} 11. Bh3 {[%emt 0:00:03]} Rxh3+ {[%emt 0:02:50]} 12. Kg2 {[%emt 0:00:01]} Qf6 {[%emt 0:03:59]} 13. Rh1 {[%emt 0:00:08]} exf4 {[%emt 0:06:35]} 14. Nxf4 {[%emt 0:07:07]} g5 {[%emt 0:01:42]} 15. d4 {[%emt 0:06:01]} gxf4 {[%emt 0:02:54]} 16. dxc5 {[%emt 0:02:11]} fxg3 {[%emt 0:02:09]} 17. Qe2 {[%emt 0:06:45]} Qf3+ {[%emt 0:01:19]} 0-1

[Event "XXXII Belgrade Trophy 2018"]
[Site "Belgrade"]
[Date "2018.11.25"]
[Round "2"]
[White "Krstonijevic, Stjepan"]
[Black "Lajthajm, Borko"]
[Result "0-1"]
[ECO "B28"]
[WhiteElo "2195"]
[BlackElo "2407"]
[Annotator "ChessBase"]
[PlyCount "46"]
[EventDate "2018.11.24"]
[EventType "swiss"]
[EventCountry "SRB"]
[SourceTitle "playchess.com"]
[Source "ChessBase"]
[SourceQuality "1"]
[TimeControl "40/5400+30:900+30"]

1. e4 {[%emt 0:00:00]} c5 {[%emt 0:00:07]} 2. Nf3 {[%emt 0:00:00]} a6 {[%emt 0:00:06]} 3. b3 {[%emt 0:00:00]} d6 {[%emt 0:00:37]} 4. Bb2 {[%emt 0:00:00]} Nc6 {[%emt 0:00:32]} 5. a4 {[%emt 0:04:18]} Bg4 {[%emt 0:01:04]} 6. h3 {[%emt 0:01:09]} Bh5 {[%emt 0:00:08]} 7. Be2 {[%emt 0:01:06]} e6 {[%emt 0:00:06]} 8. O-O {[%emt 0:00:46]} Nf6 {[%emt 0:00:22]} 9. e5 {[%emt 0:02:45]} Nd5 {[%emt 0:01:07]} 10. exd6 {[%emt 0:00:46]} Nf4 {[%emt 0:01:01]} 11. Nc3 {[%emt 0:11:57]} Nxe2+ {[%emt 0:01:18]} 12. Qxe2 {[%emt 0:02:13]} Nd4 {[%emt 0:00:07]} 13. Qe4 {[%emt 0:00:15]} Bxf3 {[%emt 0:00:13]} 14. gxf3 {[%emt 0:00:17]} Bxd6 {[%emt 0:00:23]} 15. Qg4 {[%emt 0:04:54]} O-O {[%emt 0:03:14]} 16. Rfc1 {[%emt 0:17:44]} f5 {[%emt 0:00:40]} 17. Qg2 {[%emt 0:05:49]} Rf6 {[%emt 0:00:07]} 18. Kf1 {[%emt 0:00:02]} Rg6 {[%emt 0:01:37]} 19. Qh1 {[%emt 0:00:04]} Bf4 {[%emt 0:01:37]} 20. Ne2 {[%emt 0:02:49]} Nxe2 {[%emt 0:00:53]} 21. Kxe2 {[%emt 0:01:43]} Qxd2+ {[%emt 0:00:07]} 22. Kf1 {[%emt 0:00:07]} c4 {[%emt 0:00:20]} 23. bxc4 {[%emt 0:01:37]} Qb4 {[%emt 0:00:20]} 0-1

[Event "XXXII Belgrade Trophy 2018"]
[Site "Belgrade"]
[Date "2018.11.25"]
[Round "2"]
[White "Vulinovic, Radivoje"]
[Black "Rajkovic, Mladen"]
[Result "0-1"]
[ECO "D77"]
[WhiteElo "2163"]
[BlackElo "2355"]
[Annotator "ChessBase"]
[PlyCount "60"]
[EventDate "2018.11.24"]
[EventType "swiss"]
[EventCountry "SRB"]
[SourceTitle "playchess.com"]
[Source "ChessBase"]
[SourceQuality "1"]
[TimeControl "40/5400+30:900+30"]

1. Nf3 {[%emt 0:00:00]} d5 {[%emt 0:09:00]} 2. g3 {[%emt 0:00:00]} g6 {[%emt 0:00:12]} 3. Bg2 {[%emt 0:00:00]} Bg7 {[%emt 0:00:05]} 4. d4 {[%emt 0:00:04]} Nf6 {[%emt 0:00:19]} 5. O-O {[%emt 0:00:08]} O-O {[%emt 0:00:05]} 6. c4 {[%emt 0:00:22]} dxc4 {[%emt 0:00:08]} 7. Na3 {[%emt 0:00:28]} c3 {[%emt 0:00:08]} 8. bxc3 {[%emt 0:00:18]} c5 {[%emt 0:00:08]} 9. Re1 {[%emt 0:03:32]} Nc6 {[%emt 0:02:08]} 10. Bb2 {[%emt 0:00:30]} Qb6 {[%emt 0:04:54]} 11. Nc4 {[%emt 0:08:26]} Qa6 {[%emt 0:01:31]} 12. Nfe5 {[%emt 0:01:30]} Nxe5 {[%emt 0:10:39]} 13. Nxe5 {[%emt 0:00:14]} Nd7 {[%emt 0:00:16]} 14. Nd3 {[%emt 0:04:04]} Rd8 {[%emt 0:07:09]} 15. Qc2 {[%emt 0:04:00]} Qa5 {[%emt 0:03:49]} 16. Red1 {[%emt 0:03:12]} c4 {[%emt 0:03:25]} 17. Nf4 {[%emt 0:05:13]} Nb6 {[%emt 0:05:10]} 18. e4 {[%emt 1:06:59]} Bd7 {[%emt 0:04:34]} 19. Re1 {[%emt 0:00:00]} Ba4 {[%emt 0:05:11]} 20. Qc1 {[%emt 0:00:00]} e5 {[%emt 0:01:48]} 21. Ne2 {[%emt 0:00:00]} Rac8 {[%emt 0:02:13]} 22. f4 {[%emt 0:00:00]} exd4 {[%emt 0:04:01]} 23. cxd4 {[%emt 0:00:00]} c3 {[%emt 0:01:00]} 24. Ba3 {[%emt 0:00:00]} Bxd4+ {[%emt 0:01:30]} 25. Nxd4 {[%emt 0:00:00]} Rxd4 {[%emt 0:00:03]} 26. f5 {[%emt 0:00:00]} Rd2 {[%emt 0:03:16]} 27. Rb1 {[%emt 0:00:00]} c2 {[%emt 0:02:08]} 28. Bb4 {[%emt 0:00:00]} cxb1=Q {[%emt 0:01:03]} 29. Qxb1 {[%emt 0:00:00]} Rxg2+ {[%emt 0:00:26]} 30. Kxg2 {[%emt 0:00:00]} Qe5 {[%emt 0:00:20]} 0-1

[Event "XXXII Belgrade Trophy 2018"]
[Site "Belgrade"]
[Date "2018.11.27"]
[Round "4"]
[White "Velickovic, Sasa"]
[Black "Abramovic, Bosko"]
[Result "1/2-1/2"]
[ECO "A12"]
[WhiteElo "2293"]
[BlackElo "2372"]
[Annotator "NA"]
[PlyCount "21"]
[EventDate "2018.11.24"]
[EventType "swiss"]
[EventCountry "SRB"]
[SourceTitle "playchess.com"]
[Source "ChessBase"]
[SourceQuality "1"]
[TimeControl "40/5400+30:900+30"]

1. Nf3 {[%emt 0:00:00]} Nf6 {[%emt 0:00:00]} 2. b3 {[%emt 0:00:00]} d5 {[%emt 0:00:00]} 3. Bb2 {[%emt 0:00:00]} c6 {[%emt 0:00:07]} 4. g3 {[%emt 0:00:00]} Bf5 {[%emt 0:00:11]} 5. Bg2 {[%emt 0:00:00]} e6 {[%emt 0:00:05]} 6. d3 {[%emt 0:00:00]} h6 {[%emt 0:00:05]} 7. O-O {[%emt 0:00:00]} Be7 {[%emt 0:00:06]} 8. c4 {[%emt 0:00:06]} O-O {[%emt 0:00:07]} 9. Nbd2 {[%emt 0:00:04]} Nbd7 {[%emt 0:00:13]} 10. Re1 {[%emt 0:00:06]} Bh7 {[%emt 0:00:14]} 11. a3 {[%emt 0:00:04]} 1/2-1/2

[Event "XXXII Belgrade Trophy 2018"]
[Site "Belgrade"]
[Date "2018.11.27"]
[Round "4"]
[White "Gunduz, Umut Erdem"]
[Black "Cerovic, Danilo"]
[Result "1/2-1/2"]
[ECO "C11"]
[WhiteElo "2205"]
[BlackElo "2333"]
[Annotator "ChessBase"]
[PlyCount "92"]
[EventDate "2018.11.24"]
[EventType "swiss"]
[EventCountry "SRB"]
[SourceTitle "playchess.com"]
[Source "ChessBase"]
[SourceQuality "1"]
[TimeControl "40/5400+30:900+30"]

1. e4 {[%emt 0:00:53]} e6 {[%emt 0:03:42]} 2. d4 {[%emt 0:00:35]} d5 {[%emt 0:00:07]} 3. Nc3 {[%emt 0:01:26]} Nf6 {[%emt 0:00:45]} 4. e5 {[%emt 0:00:10]} Nfd7 {[%emt 0:00:18]} 5. f4 {[%emt 0:00:09]} c5 {[%emt 0:00:26]} 6. Nf3 {[%emt 0:00:29]} Nc6 {[%emt 0:00:27]} 7. Be3 {[%emt 0:00:42]} Be7 {[%emt 0:01:10]} 8. Qd2 {[%emt 0:00:18]} O-O {[%emt 0:00:14]} 9. dxc5 {[%emt 0:00:23]} Nxc5 {[%emt 0:01:00]} 10. O-O-O {[%emt 0:00:18]} Rb8 {[%emt 0:00:35]} 11. Kb1 {[%emt 0:00:48]} b5 {[%emt 0:03:13]} 12. Bxc5 {[%emt 0:01:41]} Bxc5 {[%emt 0:00:18]} 13. Bd3 {[%emt 0:00:17]} f5 {[%emt 0:15:22]} 14. exf6 {[%emt 0:09:49]} Qxf6 {[%emt 0:03:54]} 15. Ne2 {[%emt 0:03:32]} Nb4 {[%emt 0:18:42]} 16. Ne5 {[%emt 0:06:41]} a5 {[%emt 0:09:13]} 17. Rhf1 {[%emt 0:15:04]} a4 {[%emt 0:06:10]} 18. Qc3 {[%emt 0:01:13]} Bd6 {[%emt 0:04:42]} 19. Nd4 {[%emt 0:01:26]} Nxd3 {[%emt 0:04:39]} 20. cxd3 {[%emt 0:05:45]} a3 {[%emt 0:06:08]} 21. b4 {[%emt 0:06:41]} Qh4 {[%emt 0:08:11]} 22. g3 {[%emt 0:21:08]} Qxh2 {[%emt 0:02:30]} 23. Nef3 {[%emt 0:00:12]} Qh6 {[%emt 0:04:07]} 24. Nc6 {[%emt 0:07:17]} Ra8 {[%emt 0:02:20]} 25. Nfe5 {[%emt 0:06:34]} Bb7 {[%emt 0:02:04]} 26. Na5 {[%emt 0:00:41]} d4 {[%emt 0:00:18]} 27. Qxd4 {[%emt 0:02:08]} Bxe5 {[%emt 0:00:49]} 28. Qxe5 {[%emt 0:01:41]} Bd5 {[%emt 0:00:01]} 29. Qc3 {[%emt 0:03:47]} Qh2 {[%emt 0:00:15]} 30. Qxa3 {[%emt 0:00:31]} Qxg3 {[%emt 0:00:03]} 31. Qb2 {[%emt 0:00:07]} g6 {[%emt 0:01:28]} 32. Qd2 {[%emt 0:02:43]} Rac8 {[%emt 0:00:21]} 33. Rde1 {[%emt 0:00:34]} Rf7 {[%emt 0:00:37]} 34. Nb3 {[%emt 0:00:35]} Bxb3 {[%emt 0:00:38]} 35. axb3 {[%emt 0:00:01]} Qg4 {[%emt 0:00:34]} 36. Re4 {[%emt 0:00:43]} Qf5 {[%emt 0:00:44]} 37. Rfe1 {[%emt 0:00:09]} Qd5 {[%emt 0:00:11]} 38. Kb2 {[%emt 0:00:15]} Rc6 {[%emt 0:00:43]} 39. Qe3 {[%emt 0:00:43]} Rfc7 {[%emt 0:00:55]} 40. Qd2 {[%emt 0:01:19]} Ra6 {[%emt 0:00:55]} 41. Rc1 {[%emt 0:15:26]} Rac6 {[%emt 0:05:08]} 42. Rxc6 {[%emt 0:00:00]} Qxc6 {[%emt 0:01:46]} 43. Re5 {[%emt 0:00:00]} Qb6 {[%emt 0:02:59]} 44. d4 {[%emt 0:00:00]} Qa6 {[%emt 0:03:36]} 45. Rc5 {[%emt 0:00:00]} Ra7 {[%emt 0:00:15]} 46. Qe1 {[%emt 0:00:00]} Qd6 {[%emt 0:01:51]} 1/2-1/2

[Event "XXXII Belgrade Trophy 2018"]
[Site "Belgrade"]
[Date "2018.11.27"]
[Round "4"]
[White "Vreljanski, Dragomir"]
[Black "Djordjevic, Vuk"]
[Result "0-1"]
[ECO "D03"]
[WhiteElo "2146"]
[BlackElo "2414"]
[Annotator "RC"]
[PlyCount "31"]
[EventDate "2018.11.24"]
[EventType "swiss"]
[EventCountry "SRB"]
[SourceTitle "playchess.com"]
[Source "ChessBase"]
[SourceQuality "1"]
[TimeControl "40/5400+30:900+30"]

1. d4 {[%emt 0:00:00]} e6 {[%emt 0:00:00]} 2. Nf3 {[%emt 0:00:04]} Nf6 {[%emt 0:00:10]} 3. Bg5 {[%emt 0:00:30]} d5 {[%emt 0:00:30]} 4. e3 {[%emt 0:00:30]} h6 {[%emt 0:00:30]} 5. Bh4 {[%emt 0:00:30]} Nbd7 {[%emt 0:00:30]} 6. Nbd2 {[%emt 0:00:30]} Be7 {[%emt 0:00:30]} 7. Bd3 {[%emt 0:00:30]} c5 {[%emt 0:00:30]} 8. c3 {[%emt 0:00:30]} b6 {[%emt 0:00:30]} 9. Ne5 {[%emt 0:00:30]} Nxe5 {[%emt 0:14:37]} 10. dxe5 {[%emt 0:07:41]} Nd7 {[%emt 0:00:09]} 11. Bg3 {[%emt 0:00:32]} Bb7 {[%emt 0:09:49]} 12. O-O {[%emt 0:13:10]} c4 {[%emt 0:18:03]} 13. Bc2 {[%emt 1:11:33] b5Nf3 [%clk 0:52:01] b4 [%clk 0:00:00] Nd4 [%clk 0:00:00] Qb6 [%clk 0:00:00] Qg4 [%clk 0:12:34] Bf8Bg6Be7Bc2 [%clk 0:12:34] Bf8Bg6 [%clk 0:11:42] Nc5cxb4 [%clk 0:00:00] Nd3 [%clk 0:00:00] Nxe6 [%clk 0:00:00] fxg6 [%clk 0:00:00] Qxg6+ [%clk 0:00:00] Kd7 [%clk 0:00:00] Qf7+ [%clk 0:04:28] Be7Nd4 [%clk 0:00:00] Raf8 [%clk 0:00:00] Qxg7 [%clk 0:00:00] Kd8 [%clk 0:00:00] Qg4 [%clk 0:00:00]} Bc8 {[%emt 0:50:42]} 14. Qe2 {[%emt 0:00:30]} h5 {[%emt 0:00:30]} 15. h4 {[%emt 0:00:00] Bg4 [%clk 0:04:38] f3 [%clk 0:02:28] Bd7 [%clk 0:04:53] a3 [%clk 0:02:00]} Rg8 {[%emt 0:00:00] Be1 [%clk 0:01:27] Bh3 [%clk 0:04:41] g3 [%clk 0:00:50] Bxh4 [%clk 0:04:12]} 16. Kh2 {[%emt 0:00:09] Bxf1 [%clk 0:03:57] Qxf1 [%clk 0:01:09] Nxe1 [%clk 0:04:11] gxh4 [%clk 0:01:15] Qg6 [%clk 0:04:27]} 0-1

[Event "XXXII Belgrade Trophy 2018"]
[Site "Belgrade"]
[Date "2018.11.27"]
[Round "4"]
[White "Vardakas, Stefanos"]
[Black "Pastar, Slaven"]
[Result "0-1"]
[ECO "D02"]
[WhiteElo "1986"]
[BlackElo "2326"]
[Annotator "RC"]
[PlyCount "96"]
[EventDate "2018.11.24"]
[EventType "swiss"]
[EventCountry "SRB"]
[SourceTitle "playchess.com"]
[Source "ChessBase"]
[SourceQuality "1"]
[TimeControl "40/5400+30:900+30"]

1. d4 {[%emt 0:00:00]} d5 {[%emt 0:00:00]} 2. Bf4 {[%emt 0:00:00]} Nf6 {[%emt 0:00:00]} 3. e3 {[%emt 0:00:14]} c5 {[%emt 0:00:19]} 4. c3 {[%emt 0:00:26]} Nc6 {[%emt 0:00:12]} 5. Nf3 {[%emt 0:00:57]} Qb6 {[%emt 0:00:21]} 6. Qb3 {[%emt 0:10:02]} c4 {[%emt 0:00:10]} 7. Qc2 {[%emt 0:02:29]} Bf5 {[%emt 0:00:04]} 8. Qc1 {[%emt 0:00:11]} h6 {[%emt 0:04:48]} 9. h3 {[%emt 0:01:38]} e6 {[%emt 0:01:24]} 10. Nbd2 {[%emt 0:00:43]} Qa5 {[%emt 0:06:08]} 11. Be2 {[%emt 0:03:05]} b5 {[%emt 0:01:29]} 12. a3 {[%emt 0:06:24]} Be7 {[%emt 0:01:04]} 13. O-O {[%emt 0:02:22]} O-O {[%emt 0:00:38]} 14. Ne5 {[%emt 0:12:15]} Qb6 {[%emt 0:02:51]} 15. g4 {[%emt 0:02:36]} Bh7 {[%emt 0:01:44]} 16. g5 {[%emt 0:04:07]} hxg5 {[%emt 0:02:23]} 17. Bxg5 {[%emt 0:00:13]} Qc7 {[%emt 0:07:39]} 18. Nxc6 {[%emt 0:05:01]} Qxc6 {[%emt 0:00:04]} 19. f4 {[%emt 0:00:16]} a5 {[%emt 0:02:14]} 20. Kh2 {[%emt 0:21:01]} b4 {[%emt 0:04:46]} 21. Rg1 {[%emt 0:02:40]} bxc3 {[%emt 0:01:31]} 22. bxc3 {[%emt 0:00:31]} Rfb8 {[%emt 0:01:16]} 23. Bxf6 {[%emt 0:11:57]} Bxf6 {[%emt 0:00:06]} 24. Bd1 {[%emt 0:03:42]} Rb7 {[%emt 0:03:22]} 25. Bc2 {[%emt 0:00:28]} Bd3 {[%emt 0:01:06]} 26. a4 {[%emt 0:05:59]} Rab8 {[%emt 0:01:52]} 27. Ra2 {[%emt 0:00:18]} Rb6 {[%emt 0:01:51]} 28. Rg2 {[%emt 0:02:06]} Qb7 {[%emt 0:00:46]} 29. Nf3 {[%emt 0:01:22]} Bxc2 {[%emt 0:06:28]} 30. Qxc2 {[%emt 0:00:09]} Rb1 {[%emt 0:00:35]} 31. Qd2 {[%emt 0:01:36]} Qb3 {[%emt 0:02:47]} 32. Kg3 {[%emt 0:00:31]} Rd1 {[%emt 0:00:28]} 33. Qc2 {[%emt 0:00:19]} Rd3 {[%emt 0:00:09]} 34. Rb2 {[%emt 0:00:38]} Qxb2 {[%emt 0:00:43]} 35. Qxb2 {[%emt 0:00:07]} Rxb2 {[%emt 0:00:03]} 36. Rxb2 {[%emt 0:00:04]} Rxe3 {[%emt 0:00:29]} 37. Rc2 {[%emt 0:00:50]} Bh4+ {[%emt 0:03:30]} 38. Kxh4 {[%emt 0:00:53]} Rxf3 {[%emt 0:00:01]} 39. Kg4 {[%emt 0:00:08]} Re3 {[%emt 0:01:25]} 40. f5 {[%emt 0:00:56]} exf5+ {[%emt 0:02:17]} 41. Kxf5 {[%emt 0:15:05]} Rxh3 {[%emt 0:16:40]} 42. Ke5 {[%emt 0:00:08]} Rh5+ {[%emt 0:00:06]} 43. Kd6 {[%emt 0:00:05]} Rf5 {[%emt 0:00:15]} 44. Rb2 {[%emt 0:00:25]} g5 {[%emt 0:00:09]} 45. Rb5 {[%emt 0:00:56]} g4 {[%emt 0:00:19]} 46. Rb2 {[%emt 0:00:00]} g3 {[%emt 0:00:00]} 47. Kc5 {[%emt 0:00:00]} Rg5 {[%emt 0:00:00]} 48. Rg2 {[%emt 0:00:00]} Kg7 {[%emt 0:00:00]} 0-1